fUST/lending_fUST_20250701
["ID","MTS","AMOUNT","RATE_DAILY","PERIOD"]
[368754259,1751347856126,-216.53714914,0.0001968,2]
[368754260,1751347856135,-501.17388815,0.0001968,2]
[368754261,1751347856146,-151.0,0.0001968,2]
[368754262,1751347856155,-151.0,0.0001968,2]
[368754263,1751347856164,-151.0,0.0001968,2]
[368754264,1751347856174,-203.57978496,0.0001968,2]
[368754265,1751347856183,-826.0,0.00019693,2]
[368754266,1751347856193,-420.0,0.00019695,2]
[368754267,1751347856203,-620.53,0.00019697,2]
[368754268,1751347856212,-1449.87,0.00019697,2]
[368754269,1751347856222,-460.0,0.00019697,2]
[368754270,1751347856232,-1310.1,0.00019697,2]
[368754271,1751347856241,-1152.39,0.00019697,2]
[368754272,1751347856251,-1521.08,0.00019697,2]
[368754273,1751347856260,-501.82,0.00019697,2]
[368754274,1751347856270,-961.2,0.00019697,2]
[368754275,1751347856279,-460.0,0.00019697,2]
[368754276,1751347856289,-460.0,0.00019697,2]
[368754277,1751347856298,-1069.3,0.00019697,2]
[368754278,1751347856308,-1698.43,0.00019697,2]
[368754279,1751347856317,-480.13,0.00019697,2]
[368754280,1751347856327,-460.0,0.00019698,2]
[368754281,1751347856337,-301.04,0.00019698,2]
[368754282,1751347856346,-460.0,0.00019698,2]
[368754283,1751347856356,-460.0,0.00019698,2]
[368754284,1751347856366,-855.38,0.00019698,2]
[368754285,1751347856375,-460.0,0.00019698,2]
[368754286,1751347856385,-504.27,0.00019698,2]
[368754287,1751347856394,-487.51,0.00019698,2]
[368754288,1751347856403,-460.0,0.00019698,2]
[368754289,1751347856413,-350.01,0.00019698,2]
[368754290,1751347856422,-460.0,0.00019698,2]
[368754291,1751347856431,-460.0,0.00019698,2]
[368754292,1751347856441,-460.0,0.00019698,2]
[368754293,1751347856451,-261.45,0.00019698,2]
[368754294,1751347856460,-460.0,0.00019698,2]
[368754295,1751347856470,-460.0,0.00019698,2]
[368754296,1751347856480,-460.0,0.00019698,2]
[368754297,1751347856491,-460.0,0.00019698,2]
[368754298,1751347856502,-460.0,0.00019699,2]
[368754299,1751347856511,-460.0,0.00019699,2]
[368754300,1751347856521,-460.0,0.00019699,2]
[368754301,1751347856531,-460.0,0.00019699,2]
[368754302,1751347856543,-460.0,0.00019699,2]
[368754303,1751347856552,-151.991836,0.00019699,2]
[368754304,1751347856562,-151.0,0.00019699,2]
[368754305,1751347856574,-151.0,0.00019699,2]
[368754306,1751347856584,-460.0,0.00019699,2]
[368754307,1751347856594,-151.0,0.00019699,2]
[368754308,1751347856603,-151.0,0.00019699,2]
[368754309,1751347856613,-460.0,0.00019699,2]
[368754310,1751347856622,-161.663057,0.00019699,2]
[368754311,1751347856631,-161.663057,0.00019699,2]
[368754312,1751347856641,-460.0,0.00019699,2]
[368754313,1751347856650,-469.26,0.00019699,2]
[368754314,1751347856660,-460.0,0.00019699,2]
[368754315,1751347856669,-1208.81,0.00019699,2]
[368754316,1751347856679,-227.43,0.00019699,2]
[368754317,1751347856688,-460.0,0.00019699,2]
[368754318,1751347856698,-757.73,0.00019699,2]
[368754319,1751347856707,-460.0,0.00019699,2]
[368754320,1751347856718,-460.0,0.00019699,2]
[368754321,1751347856728,-460.0,0.00019699,2]
[368754322,1751347856737,-1339.89,0.00019699,2]
[368754323,1751347856748,-2448.16,0.00019699,2]
[368754324,1751347856758,-496.49,0.00019699,2]
[368754325,1751347856767,-200.51881035,0.00019699,2]
[368754326,1751347856777,-765.05,0.00019699,2]
[368754327,1751347856787,-2184.2,0.00019699,2]
[368754328,1751347856796,-878.15,0.00019699,2]
[368754329,1751347856806,-945.27,0.00019699,2]
[368754330,1751347856815,-300.75,0.00019699,2]
[368754331,1751347856825,-565.32,0.00019701,2]
[368754332,1751347856835,-192.59,0.00019701,2]
[368754333,1751347856844,-171.77,0.00019701,2]
[368754334,1751347856855,-157.55,0.00019701,2]
[368754335,1751347856865,-460.0,0.00019702,2]
[368754336,1751347856875,-690.642,0.00019735,2]
[368754337,1751347856884,-826.0,0.00019868,2]
[368754338,1751347856894,-621.20593158,0.00019929,2]
[368754339,1751347856903,-2698.06847221,0.00019946,2]
[368754340,1751347856913,-620.53,0.00019971,2]
[368754341,1751347856924,-1449.87,0.00019971,2]
[368754342,1751347856933,-460.0,0.00019971,2]
[368754343,1751347856943,-1310.1,0.00019971,2]
[368754344,1751347856952,-1152.39,0.00019971,2]
[368754345,1751347856962,-1521.08,0.00019971,2]
[368754346,1751347856971,-501.82,0.00019971,2]
[368754347,1751347856981,-961.2,0.00019971,2]
[368754348,1751347856990,-416.16,0.00019971,2]
[368754349,1751347856999,-460.0,0.00019971,2]
[368754350,1751347857009,-1069.3,0.00019971,2]
[368754351,1751347857018,-1372.04359531,0.00019971,2]
[368754352,1751347857035,-326.38640469,0.00019971,2]
[368754353,1751347857045,-220.27,0.00019972,2]
[368754354,1751347857055,-460.0,0.00019972,2]
[368754355,1751347857064,-460.0,0.00019972,2]
[368754356,1751347857074,-855.38,0.00019972,2]
[368754357,1751347857084,-357.59,0.00019972,2]
[368754358,1751347857094,-460.0,0.00019972,2]
[368754359,1751347857103,-460.0,0.00019972,2]
[368754360,1751347857112,-460.0,0.00019972,2]
[368754361,1751347857122,-460.0,0.00019972,2]
[368754362,1751347857132,-460.0,0.00019972,2]
[368754363,1751347857141,-460.0,0.00019972,2]
[368754364,1751347857151,-484.00681358,0.00019972,2]
[368754365,1751347857160,-500.0,0.00019973,2]
[368754366,1751347857170,-216.82636961,0.00019973,2]
[368754367,1751347857179,-500.0,0.00019973,2]
[368754368,1751347857189,-500.0,0.00019973,2]
[368754369,1751347857198,-500.0,0.00019973,2]
[368754370,1751347857208,-500.0,0.00019973,2]
[368754371,1751347857217,-500.0,0.00019973,2]
[368754372,1751347857226,-500.0,0.00019973,2]
[368754373,1751347857236,-500.0,0.00019973,2]
[368754374,1751347857245,-500.89052318,0.00019973,2]
[368754375,1751347857254,-307.6867203,0.00019973,2]
[368754376,1751347857264,-460.0,0.00019973,2]
[368754377,1751347857274,-460.0,0.00019973,2]
[368754378,1751347857283,-460.0,0.00019973,2]
[368754379,1751347857293,-460.0,0.00019973,2]
[368754380,1751347857302,-460.0,0.00019973,2]
[368754381,1751347857311,-460.0,0.00019973,2]
[368754382,1751347857321,-460.0,0.00019973,2]
[368754383,1751347857330,-460.0,0.00019973,2]
[368754384,1751347857340,-460.0,0.00019973,2]
[368754385,1751347857353,-1208.81,0.00019973,2]
[368754386,1751347857363,-460.0,0.00019973,2]
[368754387,1751347857373,-757.73,0.00019973,2]
[368754388,1751347857382,-460.0,0.00019973,2]
[368754389,1751347857392,-460.0,0.00019973,2]
[368754390,1751347857403,-460.0,0.00019973,2]
[368754391,1751347857413,-1339.89,0.00019973,2]
[368754392,1751347857422,-2448.16,0.00019973,2]
[368754393,1751347857433,-496.49,0.00019973,2]
[368754394,1751347857443,-765.05,0.00019973,2]
[368754395,1751347857453,-2184.2,0.00019973,2]
[368754396,1751347857461,-878.15,0.00019973,2]
[368754397,1751347857471,-945.27,0.00019973,2]
[368754398,1751347857480,-299.49743828,0.00019976,2]
[368754399,1751347857491,-245.43823539,0.0002,2]
[368754400,1751347857503,-169.28,0.0002,2]
[368754401,1751347857513,-40366.17240984,0.0002,2]
[368754402,1751347857523,-155319.8940912,0.0002,2]
[368754403,1751347857535,-679.8667244,0.0002,2]
[368754404,1751347857546,-481.67326524,0.0002,2]
[368754405,1751347858082,-460.0,0.00018054,2]
[368754406,1751347858093,-460.0,0.00018054,2]
[368754407,1751347858103,-460.0,0.00018057,2]
[368754408,1751347858112,-493.42,0.00018327,2]
[368754409,1751347858122,-460.0,0.00018328,2]
[368754410,1751347858131,-460.0,0.00018331,2]
[368754411,1751347858142,-460.0,0.00018601,2]
[368754412,1751347858152,-460.0,0.00018602,2]
[368754413,1751347858163,-609.7678045,0.00018605,2]
[368754414,1751347858174,-362.79190775,0.00018875,2]
[368754415,1751347858186,-460.0,0.00018876,2]
[368754416,1751347858198,-460.0,0.0001915,2]
[368754417,1751347858208,-460.0,0.00019424,2]
[368754418,1751347858218,-151.0,0.00019425,2]
[368754419,1751347858229,-151.0,0.00019425,2]
[368754420,1751347858239,-151.0,0.00019425,2]
[368754421,1751347858249,-460.0,0.00019698,2]
[368754422,1751347858260,-460.0,0.00019699,2]
[368754423,1751347858272,-206.21,0.00019972,2]
[368754424,1751347858282,-460.0,0.00019973,2]
[368754425,1751347858293,-2579.81028775,0.0002,2]
[368754426,1751347858498,-330.85826451,0.00018054,2]
[368754427,1751347858514,-117.01539645,0.00018054,2]
[368754428,1751347858523,-460.0,0.00018055,2]
[368754429,1751347858534,-102994.99941867,0.0002,2]
[368754430,1751347858544,-4000.0,0.0002,4]
[368754431,1751347858553,-151.0,0.0002,2]
[368754432,1751347858563,-826.0,0.00020055,2]
[368754433,1751347858572,-151.0,0.000201,4]
[368754434,1751347858582,-732.7163822,0.0002011,2]
[368754435,1751347858594,-280.890384,0.00020187,2]
[368754436,1751347858604,-500.0,0.000202,2]
[368754437,1751347858615,-502.98415344,0.000202,2]
[368754438,1751347858624,-5000.0,0.00020228,2]
[368754439,1751347858634,-1449.87,0.00020245,2]
[368754440,1751347858643,-545.3,0.00020245,2]
[368754441,1751347858653,-1310.1,0.00020245,2]
[368754442,1751347858663,-1152.39,0.00020245,2]
[368754443,1751347858672,-1521.08,0.00020245,2]
[368754444,1751347858683,-501.82,0.00020245,2]
[368754445,1751347858693,-961.2,0.00020245,2]
[368754446,1751347858703,-460.0,0.00020245,2]
[368754447,1751347858712,-1069.3,0.00020245,2]
[368754448,1751347858722,-1698.43,0.00020245,2]
[368754449,1751347858731,-153.070993,0.00020246,2]
[368754450,1751347858742,-151.0,0.00020246,2]
[368754451,1751347858751,-151.000001,0.00020246,2]
[368754452,1751347858761,-151.0,0.00020246,2]
[368754453,1751347858771,-460.0,0.00020246,2]
[368754454,1751347858781,-855.38,0.00020246,2]
[368754455,1751347858791,-151.0,0.00020246,2]
[368754456,1751347858800,-151.0,0.00020246,2]
[368754457,1751347858810,-242.17251,0.00020246,2]
[368754458,1751347858820,-460.0,0.00020246,2]
[368754459,1751347858829,-577.05,0.00020246,2]
[368754460,1751347858839,-460.0,0.00020246,2]
[368754461,1751347858849,-416.31,0.00020246,2]
[368754462,1751347858859,-214.02206832,0.00020246,2]
[368754463,1751347858868,-460.0,0.00020246,2]
[368754464,1751347858879,-460.0,0.00020247,2]
[368754465,1751347858889,-565.17,0.00020247,2]
[368754466,1751347858898,-460.0,0.00020247,2]
[368754467,1751347858908,-460.0,0.00020247,2]
[368754468,1751347858918,-460.0,0.00020247,2]
[368754469,1751347858927,-154.184596,0.00020247,2]
[368754470,1751347858938,-219.05,0.00020247,2]
[368754471,1751347858947,-151.0,0.00020247,2]
[368754472,1751347858957,-151.0,0.00020247,2]
[368754473,1751347858966,-151.0,0.00020247,2]
[368754474,1751347858977,-151.0,0.00020247,2]
[368754475,1751347858988,-460.0,0.00020247,2]
[368754476,1751347858998,-595.14,0.00020247,2]
[368754477,1751347859008,-151.0,0.00020247,2]
[368754478,1751347859018,-1208.81,0.00020247,2]
[368754479,1751347859028,-321.91716627,0.00020247,2]
[368754480,1751347859038,-757.73,0.00020247,2]
[368754481,1751347859047,-151.0,0.00020247,2]
[368754482,1751347859058,-460.0,0.00020247,2]
[368754483,1751347859068,-585.0,0.00020247,2]
[368754484,1751347859078,-460.0,0.00020247,2]
[368754485,1751347859087,-1339.89,0.00020247,2]
[368754486,1751347859097,-2448.16,0.00020247,2]
[368754487,1751347859106,-496.49,0.00020247,2]
[368754488,1751347859117,-765.05,0.00020247,2]
[368754489,1751347859127,-2184.2,0.00020247,2]
[368754490,1751347859136,-878.15,0.00020247,2]
[368754491,1751347859146,-945.27,0.00020247,2]
[368754492,1751347859156,-460.0,0.00020247,2]
[368754493,1751347859166,-151.0,0.00020248,2]
[368754494,1751347859175,-151.0,0.00020248,2]
[368754495,1751347859185,-151.0,0.00020248,2]
[368754496,1751347859194,-151.0,0.00020248,2]
[368754497,1751347859203,-151.0,0.00020248,2]
[368754498,1751347859214,-519.37308,0.00020248,2]
[368754499,1751347859224,-519.37308,0.00020248,2]
[368754500,1751347859234,-151.0,0.00020249,2]
[368754501,1751347859244,-151.0,0.00020249,2]
[368754502,1751347859254,-199.760475,0.00020249,2]
[368754503,1751347859264,-199.760475,0.00020249,2]
[368754504,1751347859273,-151.0,0.00020249,2]
[368754505,1751347859283,-291.363181,0.00020249,2]
[368754506,1751347859293,-276.0,0.00020285,2]
[368754507,1751347859302,-168.0,0.00020293,2]
[368754508,1751347859312,-276.0,0.00020313,2]
[368754509,1751347859323,-826.0,0.00020347,2]
[368754510,1751347859332,-826.0,0.00020389,2]
[368754511,1751347859342,-151.0,0.000204,4]
[368754512,1751347859351,-150.0,0.00020417,2]
[368754513,1751347859362,-845.718,0.00020457,2]
[368754514,1751347859371,-114909.3701171,0.000205,4]
[368754515,1751347859381,-151.0,0.000205,2]
[368754516,1751347859390,-151.0,0.000205,2]
[368754517,1751347859400,-151.0,0.000205,2]
[368754518,1751347859410,-151.0,0.000205,2]
[368754519,1751347859420,-911.637542,0.000205,2]
[368754520,1751347859430,-151.0,0.000205,2]
[368754521,1751347859440,-911.637542,0.000205,2]
[368754522,1751347859451,-151.0,0.000205,2]
[368754523,1751347859461,-161.663057,0.000205,2]
[368754524,1751347859473,-161.663057,0.000205,2]
[368754525,1751347859499,-151.0,0.000205,2]
[368754526,1751347859510,-151.0,0.000205,2]
[368754527,1751347859520,-151.0,0.000205,2]
[368754528,1751347859531,-170.892341,0.000205,2]
[368754529,1751347859541,-170.892341,0.000205,2]
[368754530,1751347859552,-151.0,0.000205,2]
[368754531,1751347859562,-151.0,0.000205,2]
[368754532,1751347859572,-151.0,0.000205,2]
[368754533,1751347859582,-151.0,0.000205,2]
[368754534,1751347859592,-437.087,0.00020509,2]
[368754535,1751347859603,-424.076,0.00020509,2]
[368754536,1751347859612,-966.0,0.00020509,2]
[368754537,1751347859623,-1449.87,0.00020519,2]
[368754538,1751347859632,-1310.1,0.00020519,2]
[368754539,1751347859643,-1152.39,0.00020519,2]
[368754540,1751347859653,-1521.08,0.00020519,2]
[368754541,1751347859663,-501.82,0.00020519,2]
[368754542,1751347859674,-961.2,0.00020519,2]
[368754543,1751347859684,-460.0,0.00020519,2]
[368754544,1751347859694,-1069.3,0.00020519,2]
[368754545,1751347859703,-1698.43,0.00020519,2]
[368754546,1751347859713,-460.0,0.0002052,2]
[368754547,1751347859723,-855.38,0.0002052,2]
[368754548,1751347859733,-460.0,0.0002052,2]
[368754549,1751347859743,-410.94,0.0002052,2]
[368754550,1751347859754,-460.0,0.0002052,2]
[368754551,1751347859764,-1000.0,0.00020521,2]
[368754552,1751347859774,-461.13344532,0.00020521,2]
[368754553,1751347859784,-500.0,0.00020521,2]
[368754554,1751347859794,-501.08888605,0.00020521,2]
[368754555,1751347859805,-1000.0,0.00020521,2]
[368754556,1751347859815,-1000.0,0.00020521,2]
[368754557,1751347859825,-460.0,0.00020521,2]
[368754558,1751347859834,-570.07,0.00020521,2]
[368754559,1751347859845,-460.0,0.00020521,2]
[368754560,1751347859855,-460.0,0.00020521,2]
[368754561,1751347859865,-460.0,0.00020521,2]
[368754562,1751347859875,-1208.81,0.00020521,2]
[368754563,1751347859885,-757.73,0.00020521,2]
[368754564,1751347859895,-460.0,0.00020521,2]
[368754565,1751347859904,-460.0,0.00020521,2]
[368754566,1751347859915,-1339.89,0.00020521,2]
[368754567,1751347859925,-2448.16,0.00020521,2]
[368754568,1751347859936,-496.49,0.00020521,2]
[368754569,1751347859946,-765.05,0.00020521,2]
[368754570,1751347859956,-2184.2,0.00020521,2]
[368754571,1751347859967,-878.15,0.00020521,2]
[368754572,1751347859976,-945.27,0.00020521,2]
[368754573,1751347859987,-460.0,0.00020521,2]
[368754574,1751347859997,-500.0,0.00020547,14]
[368754575,1751347860007,-395.69847601,0.00020564,2]
[368754576,1751347860017,-3144.14,0.000206,2]
[368754577,1751347860027,-151.0,0.000206,2]
[368754578,1751347860037,-151.0,0.000206,2]
[368754579,1751347860046,-199.760475,0.000206,2]
[368754580,1751347860056,-199.760475,0.000206,2]
[368754581,1751347860066,-151.0,0.000206,2]
[368754582,1751347860076,-186.06798606,0.000206,2]
[368754583,1751347860086,-151.0,0.000207,3]
[368754584,1751347860101,-1000.0,0.00020734,5]
[368754585,1751347860112,-1000.0,0.00020748,2]
[368754586,1751347860123,-1449.87,0.00020793,2]
[368754587,1751347860133,-1310.1,0.00020793,2]
[368754588,1751347860143,-1152.39,0.00020793,2]
[368754589,1751347860154,-1521.08,0.00020793,2]
[368754590,1751347860164,-501.82,0.00020793,2]
[368754591,1751347860174,-961.2,0.00020793,2]
[368754592,1751347860183,-460.0,0.00020793,2]
[368754593,1751347860193,-1069.3,0.00020793,2]
[368754594,1751347860203,-1698.43,0.00020793,2]
[368754595,1751347860213,-151.0,0.00020793,2]
[368754596,1751347860222,-460.0,0.00020794,2]
[368754597,1751347860232,-855.38,0.00020794,2]
[368754598,1751347860242,-460.0,0.00020794,2]
[368754599,1751347860252,-460.0,0.00020794,2]
[368754600,1751347860262,-460.0,0.00020795,2]
[368754601,1751347860272,-257.04,0.00020795,2]
[368754602,1751347860282,-460.0,0.00020795,2]
[368754603,1751347860292,-511.44,0.00020795,2]
[368754604,1751347860302,-1208.81,0.00020795,2]
[368754605,1751347860312,-757.73,0.00020795,2]
[368754606,1751347860322,-598.94603668,0.00020795,2]
[368754607,1751347860333,-460.0,0.00020795,2]
[368754608,1751347860343,-1339.89,0.00020795,2]
[368754609,1751347860353,-2448.16,0.00020795,2]
[368754610,1751347860363,-496.49,0.00020795,2]
[368754611,1751347860374,-765.05,0.00020795,2]
[368754612,1751347860384,-2184.2,0.00020795,2]
[368754613,1751347860394,-878.15,0.00020795,2]
[368754614,1751347860404,-945.27,0.00020795,2]
[368754615,1751347860414,-460.0,0.00020795,2]
[368754616,1751347860424,-151.0,0.00020796,2]
[368754617,1751347860434,-151.0,0.00020796,2]
[368754618,1751347860444,-227.449851,0.00020796,2]
[368754619,1751347860455,-151.0,0.000208,4]
[368754620,1751347860465,-153.0,0.00020822,2]
[368754621,1751347860474,-151.0,0.000209,3]
[368754622,1751347860483,-621.20593158,0.00020917,2]
[368754623,1751347860497,-276.0,0.00020977,2]
[368754624,1751347860506,-244.39901772,0.00020999,2]
[368754625,1751347860516,-500.0,0.00020999,7]
[368754626,1751347860526,-500.0,0.00020999,7]
[368754627,1751347860536,-500.0,0.00020999,7]
[368754628,1751347860545,-500.0,0.00020999,7]
[368754629,1751347860555,-500.0,0.00020999,7]
[368754630,1751347860565,-500.0,0.00020999,7]
[368754631,1751347860574,-500.0,0.00020999,7]
[368754632,1751347860585,-500.0,0.00020999,7]
[368754633,1751347860595,-500.0,0.00020999,7]
[368754634,1751347860605,-500.0,0.00020999,7]
[368754635,1751347860615,-500.0,0.00020999,7]
[368754636,1751347860625,-500.0,0.00020999,7]
[368754637,1751347860635,-500.0,0.00020999,7]
[368754638,1751347860644,-500.0,0.00020999,7]
[368754639,1751347860654,-355.51,0.00020999,7]
[368754640,1751347860664,-500.0,0.00020999,7]
[368754641,1751347860674,-500.0,0.00020999,7]
[368754642,1751347860684,-500.0,0.00020999,7]
[368754643,1751347860694,-500.0,0.00020999,7]
[368754644,1751347860703,-500.0,0.00020999,7]
[368754645,1751347860713,-500.0,0.00020999,7]
[368754646,1751347860725,-315.34,0.00020999,7]
[368754647,1751347860735,-151.0,0.00020999,2]
[368754648,1751347860744,-20.22697792,0.00020999,2]
[368754649,1751347932352,17228.93380911,0.00017955,2]
[368754650,1751347986714,310.60296579,0.00017957,2]
[368754651,1751348096319,1665.67053827,0.00017955,2]
[368754652,1751348103098,2999.27789137,0.00018013,2]
[368754657,1751348232657,1000.0,0.00024,120]
[368754658,1751348253553,-300.0,0.00018051,2]
[368754659,1751348253580,-21.56896372,0.00018052,2]
[368754660,1751348260541,-236.3345722,0.00018052,2]
[368754663,1751348389967,367.59754737,0.00017952,2]
[368754665,1751348486732,260.866407,0.00013699,2]
[368754667,1751348704252,-220.98620319,0.00018049,2]
[368754668,1751348710906,-79.01379681,0.00018049,2]
[368754669,1751348710930,-72.98620319,0.00018049,2]
[368754670,1751348712882,-227.01379681,0.00018049,2]
[368754671,1751348712906,-120.98620319,0.00018049,2]
[368754673,1751348723017,240.49438796,0.00017834,2]
[368754674,1751348730102,-769.83203536,0.00018049,2]
[368754676,1751348810653,244.93023508,0.00017953,2]
[368754677,1751348832089,-309.18176145,0.00018049,2]
[368754678,1751348832111,-709.0,0.00018049,2]
[368754679,1751348832135,-300.0,0.00018049,2]
[368754680,1751348832159,-434.43291053,0.0001805,2]
[368754682,1751348860534,247.3381,0.00024,120]
[368754683,1751348943367,364.40809841,0.00017951,2]
[368754684,1751348977816,605.67632192,0.00017954,2]
[368754697,1751349032233,-300.0,0.00018048,2]
[368754698,1751349032243,-173.14114544,0.00018049,2]
[368754699,1751349032253,-369.59778965,0.00018049,2]
[368754700,1751349032262,-460.0,0.00018049,2]
[368754701,1751349032272,-460.0,0.00018049,2]
[368754702,1751349032282,-460.0,0.00018049,2]
[368754703,1751349032291,-460.0,0.00018049,2]
[368754704,1751349032301,-460.0,0.00018049,2]
[368754705,1751349032310,-460.0,0.00018049,2]
[368754706,1751349032320,-460.0,0.00018049,2]
[368754707,1751349032330,-460.0,0.00018049,2]
[368754708,1751349032339,-1110.87,0.00018049,2]
[368754709,1751349032349,-460.0,0.00018049,2]
[368754710,1751349032358,-460.0,0.00018049,2]
[368754711,1751349032368,-381.73033018,0.00018049,2]
[368754712,1751349032377,-460.0,0.0001805,2]
[368754713,1751349032387,-460.0,0.0001805,2]
[368754714,1751349032396,-460.0,0.0001805,2]
[368754715,1751349032407,-544.10754723,0.0001805,2]
[368754716,1751349032416,-403.47520368,0.0001805,2]
[368754736,1751349038207,-460.0,0.00018049,2]
[368754737,1751349038217,-56.52479632,0.0001805,2]
[368754738,1751349038227,-460.0,0.0001805,2]
[368754739,1751349038237,-460.0,0.0001805,2]
[368754741,1751349038247,-460.0,0.0001805,2]
[368754743,1751349038257,-460.0,0.0001805,2]
[368754745,1751349038267,-460.0,0.0001805,2]
[368754746,1751349038277,-375.89404552,0.0001805,2]
[368754748,1751349038287,-460.0,0.0001805,2]
[368754749,1751349038296,-460.0,0.0001805,2]
[368754750,1751349038306,-504.20582813,0.0001805,2]
[368754751,1751349038315,-202.09646408,0.0001805,2]
[368754752,1751349038325,-464.67399762,0.0001805,2]
[368754753,1751349038334,-460.0,0.0001805,2]
[368754755,1751349038343,-346.06944012,0.0001805,2]
[368754757,1751349038352,-460.0,0.0001805,2]
[368754760,1751349038363,-460.0,0.0001805,2]
[368754761,1751349038372,-460.0,0.0001805,2]
[368754762,1751349038382,-460.0,0.0001805,2]
[368754763,1751349038392,-460.0,0.0001805,2]
[368754764,1751349038402,-460.0,0.0001805,2]
[368754766,1751349038414,-716.4,0.0001805,2]
[368754767,1751349038424,-460.0,0.0001805,2]
[368754768,1751349038433,-460.0,0.0001805,2]
[368754769,1751349038443,-460.0,0.0001805,2]
[368754770,1751349038452,-460.0,0.0001805,2]
[368754771,1751349038461,-465.84551242,0.0001805,2]
[368754773,1751349038470,-475.16217026,0.0001805,2]
[368754775,1751349038480,-1541.28,0.0001805,2]
[368754777,1751349038490,-460.0,0.0001805,2]
[368754779,1751349038500,-460.0,0.0001805,2]
[368754780,1751349038510,-460.0,0.0001805,2]
[368754781,1751349038519,-460.0,0.0001805,2]
[368754782,1751349038529,-460.0,0.0001805,2]
[368754784,1751349038539,-460.0,0.0001805,2]
[368754786,1751349038549,-460.0,0.0001805,2]
[368754788,1751349038559,-460.0,0.0001805,2]
[368754790,1751349038569,-460.0,0.0001805,2]
[368754792,1751349038579,-460.0,0.0001805,2]
[368754794,1751349038588,-460.0,0.0001805,2]
[368754796,1751349038598,-548.12663295,0.0001805,2]
[368754798,1751349038608,-460.0,0.0001805,2]
[368754800,1751349038619,-460.0,0.0001805,2]
[368754801,1751349038628,-460.0,0.0001805,2]
[368754803,1751349038643,-460.0,0.0001805,2]
[368754806,1751349038659,-460.0,0.0001805,2]
[368754807,1751349038675,-460.0,0.0001805,2]
[368754808,1751349038690,-1394.72,0.0001805,2]
[368754809,1751349038702,-460.0,0.0001805,2]
[368754810,1751349038716,-460.0,0.0001805,2]
[368754811,1751349038731,-460.0,0.0001805,2]
[368754812,1751349038748,-1865.57,0.0001805,2]
[368754813,1751349038762,-460.0,0.0001805,2]
[368754814,1751349038777,-460.0,0.0001805,2]
[368754815,1751349038791,-460.0,0.0001805,2]
[368754816,1751349038806,-461.16949471,0.0001805,2]
[368754817,1751349038822,-460.0,0.0001805,2]
[368754818,1751349038837,-460.0,0.0001805,2]
[368754819,1751349038849,-460.0,0.0001805,2]
[368754820,1751349038863,-692.65,0.0001805,2]
[368754822,1751349038878,-460.0,0.0001805,2]
[368754824,1751349038892,-204.97976997,0.0001805,2]
[368754827,1751349038906,-460.0,0.0001805,2]
[368754829,1751349038920,-460.0,0.0001805,2]
[368754833,1751349038935,-5118.19140827,0.0001805,2]